bitfinex/quotes_BTCUSD_20240730
["timestamp","ask_amount","ask_price","bid_price","bid_amount"]
[1722346497874,0.149599,66846.0,66839.0,0.299223]
[1722346498110,0.0015542,66846.0,66842.0,0.149605]
[1722346498451,0.0015542,66846.0,66845.0,0.149599]
[1722346498619,0.149586,66851.0,66845.0,0.149599]
[1722346498620,0.0015542,66848.0,66847.0,0.149595]
[1722346498830,0.0015542,66848.0,66847.0,0.448785]
[1722346499031,0.0015542,66851.0,66848.0,0.149591]
[1722346499234,9e-05,66852.0,66851.0,0.149586]
[1722346499595,9e-05,66852.0,66851.0,0.0156632]
[1722346500116,9e-05,66852.0,66851.0,0.7635932]
[1722346502426,9e-05,66852.0,66851.0,0.7936432]
[1722346502716,9e-05,66852.0,66851.0,0.8076432]
[1722346503118,9e-05,66852.0,66851.0,1.1068152]
[1722346503289,9e-05,66852.0,66851.0,0.8076432]
[1722346503497,9e-05,66852.0,66851.0,1.1068152]
[1722346503905,9e-05,66852.0,66851.0,1.71552024]
[1722346504078,9e-05,66852.0,66851.0,1.92585477]
[1722346504709,9e-05,66852.0,66851.0,1.91585477]
[1722346505567,9e-05,66852.0,66851.0,1.46604715]
[1722346505738,9e-05,66852.0,66851.0,0.31963115]
[1722346505986,9e-05,66852.0,66851.0,0.5084712]
[1722346506159,9e-05,66852.0,66851.0,0.8076432]
[1722346506333,9e-05,66852.0,66851.0,0.4944712]
[1722346506535,9e-05,66852.0,66851.0,0.1952992]
[1722346506735,9e-05,66852.0,66851.0,0.5084712]
[1722346506960,9e-05,66852.0,66851.0,0.53953561]
[1722346506961,0.00092,66852.0,66851.0,0.53953561]
[1722346507182,0.00092,66852.0,66851.0,0.24036361]
[1722346507336,0.00092,66852.0,66851.0,0.25436361]
[1722346507800,0.00092,66852.0,66851.0,0.24036361]
[1722346508081,0.00092,66852.0,66851.0,0.53953561]
[1722346508285,0.00092,66852.0,66851.0,0.83870761]
[1722346508463,0.00092,66852.0,66851.0,0.0457132]
[1722346508667,0.150504,66852.0,66851.0,0.0457132]
[1722346508873,0.150504,66852.0,66851.0,0.0156632]
[1722346508874,0.00092,66852.0,66851.0,0.0156632]
[1722346509074,0.00092,66852.0,66851.0,0.4644212]
[1722346509305,0.00092,66852.0,66851.0,0.77798]
[1722346509493,0.00092,66852.0,66851.0,1.63435401]
[1722346509696,0.00092,66852.0,66851.0,1.99458705]
[1722346509903,0.00092,66852.0,66851.0,2.33780905]
[1722346510061,0.00092,66852.0,66851.0,2.31580905]
[1722346510458,0.00092,66852.0,66851.0,2.5627715]
[1722346510631,0.0015542,66873.0,66872.0,1.380023]
[1722346510841,0.0015542,66877.0,66876.0,0.7777]
[1722346511027,0.0015542,66877.0,66876.0,1.07676]
[1722346511218,0.0604,66888.0,66878.0,0.77768]
[1722346511569,0.0604,66888.0,66878.0,1.076732]
[1722346511796,0.0015542,66887.0,66878.0,1.09293052]
[1722346512003,0.0604,66888.0,66878.0,1.21723084]
[1722346512216,0.0015542,66893.0,66878.0,1.63610001]
[1722346512420,0.0015542,66893.0,66878.0,2.19578505]
[1722346512602,0.48,66896.0,66878.0,2.21868844]
[1722346512771,0.48,66896.0,66878.0,2.48528925]
[1722346512988,0.00843,66899.0,66878.0,2.48528925]
[1722346513185,0.00843,66899.0,66878.0,2.54898925]
[1722346513594,0.00843,66899.0,66878.0,2.55098925]
[1722346514360,0.00843,66899.0,66896.0,1.752719]
[1722346514557,0.00843,66899.0,66896.0,1.89795236]
[1722346514758,0.00843,66899.0,66896.0,2.23310045]
[1722346514975,0.00843,66899.0,66896.0,2.12238933]
[1722346515195,0.00843,66899.0,66896.0,1.9664358]
[1722346515425,0.00843,66899.0,66896.0,2.06474753]
[1722346515664,0.00843,66899.0,66896.0,2.08674753]
[1722346515870,0.00843,66899.0,66896.0,2.06474753]
[1722346517000,0.00843,66899.0,66896.0,1.90405321]
[1722346517444,0.00843,66899.0,66896.0,1.31684917]
[1722346517648,0.00843,66899.0,66896.0,1.19262509]
[1722346518049,0.00843,66899.0,66896.0,1.09262509]
[1722346518252,0.00843,66899.0,66896.0,0.19571209]
[1722346518457,0.00843,66899.0,66896.0,0.01617709]
[1722346518775,0.00843,66899.0,66880.0,0.0832]
[1722346518924,0.298972,66896.0,66878.0,0.00908724]
[1722346519124,0.298988,66893.0,66881.0,0.01688482]
[1722346519325,0.1391,66894.0,66886.0,0.149508]
[1722346519326,0.438081,66894.0,66886.0,0.149508]
[1722346519551,0.1391,66894.0,66888.0,0.149501]
[1722346519705,0.1391,66894.0,66874.0,0.329116]
[1722346519706,0.1391,66894.0,66887.0,0.01686038]
[1722346519923,0.0152664,66897.0,66893.0,0.298982]
[1722346520128,0.0152664,66897.0,66896.0,0.149485]
[1722346520349,0.0152664,66897.0,66896.0,0.75041652]
[1722346520564,0.0152664,66897.0,66896.0,0.76729607]
[1722346521251,0.0152664,66897.0,66896.0,1.15353639]
[1722346521488,0.0152664,66897.0,66896.0,1.15054687]
[1722346521698,0.0152664,66897.0,66896.0,1.25054687]
[1722346521897,0.0152664,66897.0,66896.0,1.16327755]
[1722346522143,0.0152664,66897.0,66896.0,0.86430655]
[1722346522344,0.6068164,66897.0,66896.0,0.01687955]
[1722346522542,0.9057834,66897.0,66896.0,0.01687955]
[1722346522662,0.9057834,66897.0,66878.0,0.008]
[1722346522663,0.298997,66891.0,66878.0,0.008]
[1722346522865,0.4573334,66897.0,66878.0,0.008]
[1722346522866,0.298971,66896.0,66878.0,0.008]
[1722346523065,0.149499,66890.0,66885.0,0.149509]
[1722346523390,0.1583664,66897.0,66878.0,0.008]
[1722346523391,0.0015542,66896.0,66878.0,0.008]
[1722346523593,0.14951,66885.0,66878.0,0.008]
[1722346523755,0.0015542,66884.0,66880.0,0.149521]
[1722346523954,0.0015542,66884.0,66878.0,0.008]
[1722346523955,0.1510682,66884.0,66879.0,0.149523]
[1722346524198,0.0015542,66884.0,66879.0,0.299047]
[1722346524398,0.0015542,66884.0,66883.0,0.149514]
[1722346524606,0.0015542,66884.0,66878.0,0.008]
[1722346524607,0.149507,66887.0,66880.0,0.299042]
[1722346524844,0.149507,66887.0,66881.0,0.149518]
[1722346524845,0.149508,66886.0,66881.0,0.149518]
[1722346525006,0.299018,66886.0,66878.0,0.008]
[1722346525183,0.149516,66883.0,66878.0,0.008]
[1722346525385,0.075,66883.0,66878.0,0.008]
[1722346525792,0.0015542,66880.0,66876.0,0.29906]
[1722346525984,0.0015542,66880.0,66879.0,0.82296416]
[1722346526135,0.0015542,66882.0,66881.0,0.149519]
[1722346526313,0.0015542,66882.0,66881.0,0.747595]
[1722346526513,0.0015542,66882.0,66881.0,0.83369324]
[1722346526742,0.0604,66890.0,66883.0,0.149514]
[1722346526743,0.149504,66888.0,66883.0,0.149514]
[1722346527088,0.149509,66886.0,66881.0,0.149518]
[1722346527238,0.149509,66886.0,66878.0,0.014]
[1722346527239,0.0015542,66885.0,66882.0,0.149515]
[1722346527619,0.0015542,66885.0,66881.0,0.149518]
[1722346527827,0.0015542,66885.0,66884.0,0.149512]
[1722346528037,0.0015542,66889.0,66888.0,0.149503]
[1722346528389,0.0015542,66889.0,66887.0,0.149505]
[1722346528569,0.0015542,66889.0,66884.0,0.149512]
[1722346528785,0.1510572,66889.0,66884.0,0.149512]
[1722346528984,0.0015542,66889.0,66878.0,0.014]
[1722346529191,0.0015542,66889.0,66887.0,0.149505]
[1722346529395,0.0015542,66889.0,66888.0,0.01413881]
[1722346529757,0.0015542,66889.0,66888.0,0.44851]
[1722346529923,0.0015542,66894.0,66893.0,0.478526]
[1722346530244,0.0015542,66896.0,66895.0,0.448464]
[1722346530597,0.0015542,66896.0,66895.0,0.7615423]
[1722346530796,0.00843,66899.0,66895.0,0.0141023]
[1722346531002,0.157909,66899.0,66895.0,0.0141023]
[1722346531208,0.0015542,66896.0,66895.0,0.0141023]
[1722346531407,0.0015542,66896.0,66893.0,0.298984]
[1722346531658,0.0015542,66896.0,66894.0,0.01465962]
[1722346532076,0.0015542,66896.0,66893.0,0.14949]
[1722346532272,0.0015542,66896.0,66895.0,0.01465707]
[1722346532525,0.149488,66895.0,66894.0,0.01465962]
[1722346532703,0.149488,66895.0,66891.0,0.149496]
[1722346532704,0.082,66895.0,66891.0,0.149496]
[1722346532906,0.0015542,66894.0,66893.0,0.149492]
[1722346533238,0.0015542,66896.0,66895.0,0.149488]
[1722346533472,0.0015542,66896.0,66880.0,0.07534716]
[1722346533643,0.149493,66893.0,66887.0,0.29901]
[1722346533857,0.0015542,66892.0,66885.0,0.299019]
[1722346534083,0.1510452,66894.0,66889.0,0.149501]
[1722346534480,0.1510442,66894.0,66889.0,0.149501]
[1722346534680,0.0015542,66894.0,66891.0,0.149496]
[1722346534880,0.0015542,66895.0,66890.0,0.298994]
[1722346535082,0.0015542,66895.0,66891.0,0.298993]
[1722346535288,0.0152664,66897.0,66895.0,0.149488]
[1722346535289,0.0015542,66896.0,66895.0,0.149488]
[1722346535649,0.0015542,66896.0,66895.0,0.74744]
[1722346536112,0.0015542,66896.0,66891.0,0.03005]
[1722346536113,0.0152664,66897.0,66896.0,0.448456]
[1722346536349,0.0152664,66897.0,66892.0,0.298989]
[1722346536551,0.0152664,66897.0,66896.0,0.149485]
[1722346536964,0.149486,66896.0,66885.0,0.03005]
[1722346537167,0.149486,66896.0,66880.0,0.1]
[1722346537168,0.0015542,66895.0,66894.0,0.74745]
[1722346537392,0.0015542,66895.0,66894.0,1.52146]
[1722346537612,0.0152664,66897.0,66896.0,0.777477]
[1722346537783,0.0152664,66897.0,66896.0,1.45133857]
[1722346537993,0.0152664,66897.0,66896.0,1.76430957]
[1722346538211,0.0152664,66897.0,66896.0,2.22997489]
[1722346538416,0.0152664,66897.0,66896.0,2.28998852]
[1722346538621,0.0152664,66897.0,66896.0,2.30998852]
[1722346538968,0.0152664,66897.0,66896.0,2.54876819]
[1722346539170,0.0152664,66897.0,66896.0,2.60895952]
[1722346539439,0.0152664,66897.0,66896.0,2.87770696]
[1722346539760,0.0152664,66897.0,66896.0,2.87970696]
[1722346539961,0.0152664,66897.0,66896.0,2.56910199]
[1722346540174,0.0152664,66897.0,66896.0,2.87966169]
[1722346540380,0.0015542,66916.0,66906.0,0.04005]
[1722346540601,0.0015542,66916.0,66906.0,1.35851684]
[1722346540805,0.0015542,66931.0,66906.0,2.50550793]
[1722346541043,0.0015542,66932.0,66906.0,3.10335993]
[1722346541457,0.0015542,66932.0,66906.0,3.10535993]
[1722346541906,0.0015542,66932.0,66913.0,0.03]
[1722346542250,0.44444115,66936.0,66913.0,0.03]
[1722346542251,1e-06,66914.0,66913.0,3.0225381]
[1722346542484,0.44444115,66936.0,66935.0,1.045789]
[1722346542685,9e-05,66943.0,66942.0,0.746915]
[1722346542910,9e-05,66943.0,66942.0,1.3600725]
[1722346543114,9e-05,66943.0,66942.0,1.62823454]
[1722346543333,9e-05,66943.0,66942.0,1.78886758]
[1722346543780,9e-05,66943.0,66942.0,1.77886758]
[1722346544213,9e-05,66943.0,66942.0,1.48010158]
[1722346544417,9e-05,66943.0,66942.0,1.32946854]
[1722346544832,9e-05,66943.0,66942.0,0.79100254]
[1722346545043,9e-05,66943.0,66942.0,0.04408754]
[1722346545262,9e-05,66943.0,66942.0,0.19347054]
[1722346545468,9e-05,66943.0,66942.0,0.79100254]
[1722346545670,9e-05,66943.0,66942.0,0.87010279]
[1722346546076,9e-05,66943.0,66942.0,1.38380183]
[1722346546292,9e-05,66943.0,66942.0,1.68256783]
[1722346546493,9e-05,66943.0,66942.0,1.31870158]
[1722346546700,9e-05,66943.0,66942.0,1.30470158]
[1722346546900,9e-05,66943.0,66942.0,1.60346758]
[1722346547102,9e-05,66943.0,66942.0,1.68881474]
[1722346547304,9e-05,66943.0,66942.0,1.70281474]
[1722346547454,9e-05,66943.0,66942.0,1.83950906]
[1722346547854,9e-05,66943.0,66942.0,1.85350906]
[1722346548035,9e-05,66943.0,66942.0,1.95350906]
[1722346549201,9e-05,66943.0,66942.0,2.0776642]
[1722346549445,9e-05,66943.0,66942.0,2.07766414]
[1722346549649,9e-05,66943.0,66942.0,2.06366414]
[1722346549859,9e-05,66943.0,66942.0,2.07766414]
[1722346550078,9e-05,66943.0,66942.0,1.95350906]
[1722346550282,9e-05,66943.0,66942.0,2.06366516]
[1722346550489,9e-05,66943.0,66942.0,1.95350906]
[1722346550898,9e-05,66943.0,66942.0,1.93950906]
[1722346551111,9e-05,66943.0,66942.0,2.23827506]
[1722346551319,9e-05,66943.0,66942.0,1.97350906]
[1722346551527,9e-05,66943.0,66942.0,2.07766809]
[1722346551942,9e-05,66943.0,66942.0,2.09966165]
[1722346552074,9e-05,66943.0,66942.0,2.07766165]
[1722346552480,9e-05,66943.0,66942.0,2.07765976]
[1722346552682,9e-05,66943.0,66942.0,2.18195976]
[1722346552886,9e-05,66943.0,66942.0,2.14595976]
[1722346553282,9e-05,66943.0,66942.0,2.15995976]
[1722346553505,9e-05,66943.0,66942.0,2.14595976]
[1722346553946,9e-05,66943.0,66942.0,2.15995976]
[1722346554142,9e-05,66943.0,66942.0,2.16795976]
[1722346554373,9e-05,66943.0,66942.0,2.14595976]
[1722346554520,9e-05,66943.0,66942.0,2.15995976]
[1722346554725,9e-05,66943.0,66942.0,2.47972576]
[1722346554936,9e-05,66943.0,66942.0,2.48072576]
[1722346555090,9e-05,66943.0,66942.0,2.15995976]
[1722346555405,9e-05,66943.0,66942.0,2.16880047]
[1722346555604,0.00842,66963.0,66962.0,1.075416]
[1722346555830,0.00842,66963.0,66962.0,0.89810621]
[1722346556452,0.00842,66963.0,66962.0,0.76051461]
[1722346556862,0.00842,66963.0,66962.0,0.46183861]
[1722346557048,0.00842,66963.0,66962.0,0.16316261]
[1722346557227,0.00842,66963.0,66962.0,0.01382461]
[1722346557431,0.00842,66963.0,66952.0,0.298717]
[1722346557432,0.149343,66960.0,66952.0,0.298717]
[1722346557650,0.0623,66962.0,66953.0,0.11680046]
[1722346557853,0.0623,66962.0,66954.0,0.1]
[1722346557854,0.149341,66961.0,66954.0,0.1]
[1722346558012,0.0623,66962.0,66954.0,0.398711]
[1722346558219,0.211639,66962.0,66957.0,0.149349]
[1722346558419,0.0623,66962.0,66961.0,0.14934]
[1722346558668,0.0623,66962.0,66961.0,0.16313337]
[1722346558945,0.0623,66962.0,66961.0,0.46181437]
[1722346559186,0.0623,66962.0,66961.0,0.51100081]
[1722346559381,0.0623,66962.0,66961.0,0.01379337]
[1722346559496,0.211638,66962.0,66961.0,0.01379337]
[1722346559699,0.0623,66962.0,66959.0,0.149344]
[1722346559900,0.211638,66962.0,66961.0,0.01380168]
[1722346560211,0.0623,66962.0,66954.0,0.298709]
[1722346560408,0.379982,66961.0,66955.0,0.01381694]
[1722346560607,0.0813,66961.0,66948.0,0.03005]
[1722346560943,0.1508972,66960.0,66957.0,0.009]
[1722346561102,0.0015542,66960.0,66959.0,0.149345]
[1722346561317,0.0015542,66960.0,66959.0,0.29869]
[1722346561568,0.0813,66961.0,66960.0,0.448027]
[1722346561759,0.0813,66961.0,66959.0,0.31249677]
[1722346561760,0.149342,66960.0,66959.0,0.01380677]
[1722346561975,0.0813,66961.0,66951.0,0.298723]
[1722346562183,0.149348,66958.0,66951.0,0.298723]
[1722346562385,0.0813,66961.0,66955.0,0.01]
[1722346562601,0.149345,66959.0,66955.0,0.159353]
[1722346562746,0.0813,66961.0,66950.0,0.03005]
[1722346562950,0.0813,66961.0,66960.0,0.149342]
[1722346563174,0.0813,66961.0,66960.0,0.448027]
[1722346563374,0.0813,66961.0,66960.0,0.746712]
[1722346563541,0.0813,66961.0,66960.0,0.462027]
[1722346564164,0.0813,66961.0,66960.0,0.163342]
[1722346564786,0.0813,66961.0,66960.0,0.448027]
[1722346565099,0.0813,66961.0,66960.0,0.5098347]
[1722346565256,0.0813,66961.0,66960.0,0.462027]
[1722346565882,0.23064,66961.0,66960.0,0.014]
[1722346566083,0.0813,66961.0,66960.0,0.014]
[1722346566348,0.23064,66961.0,66960.0,0.014]
[1722346566558,0.828002,66961.0,66960.0,0.014]
[1722346566983,0.529321,66961.0,66960.0,0.014]
[1722346567743,0.23064,66961.0,66960.0,0.014]
[1722346567915,0.529321,66961.0,66960.0,0.014]
[1722346568137,0.828002,66961.0,66960.0,0.014]
[1722346568291,1.488664,66961.0,66960.0,0.014]
[1722346568644,1.189983,66961.0,66960.0,0.014]
[1722346568758,0.298704,66956.0,66943.0,0.07534716]
[1722346568961,0.1446,66961.0,66951.0,0.298723]
[1722346569165,0.14935,66957.0,66952.0,0.16320908]
[1722346569413,0.0015542,66955.0,66953.0,0.149357]
[1722346569608,0.149347,66958.0,66954.0,0.013845]
[1722346569814,0.149347,66958.0,66954.0,0.149355]
[1722346570129,0.1446,66961.0,66955.0,0.01384245]
[1722346570330,0.29869,66959.0,66955.0,0.01384245]
[1722346570629,0.1446,66961.0,66948.0,0.149368]
[1722346570630,0.14936,66953.0,66948.0,0.149368]
[1722346570789,0.149356,66954.0,66950.0,0.149364]
[1722346571129,0.149353,66956.0,66951.0,0.12417533]
[1722346571353,0.1446,66961.0,66954.0,0.448067]
[1722346571680,0.149343,66960.0,66956.0,0.14935]
[1722346571848,0.0015542,66958.0,66954.0,0.298712]
[1722346572072,0.0015542,66958.0,66956.0,0.298703]
[1722346572207,0.00842,66963.0,66955.0,0.12416756]
[1722346572395,0.149349,66957.0,66956.0,0.12416756]
[1722346572593,0.00842,66963.0,66951.0,0.012]
[1722346572594,0.746802,66952.0,66951.0,0.012]
[1722346572822,0.1401,66956.0,66937.0,0.15230285]
[1722346573067,0.1401,66956.0,66939.0,0.298778]
[1722346573323,0.1401,66956.0,66936.0,0.15230285]
[1722346573324,0.74677,66955.0,66954.0,0.009]
[1722346574686,0.1401,66956.0,66942.0,0.07534716]
[1722346574913,0.29869,66959.0,66951.0,0.014]
[1722346575143,0.149348,66958.0,66954.0,0.149354]
[1722346575368,0.48,66961.0,66955.0,0.12417175]
[1722346575568,0.48,66961.0,66956.0,0.12416727]
[1722346575683,0.48,66961.0,66954.0,0.004]
[1722346575684,0.149349,66957.0,66954.0,0.004]
[1722346575889,0.149351,66956.0,66955.0,0.12416891]
[1722346576224,0.298695,66958.0,66955.0,0.12416891]
[1722346576549,0.001,66959.0,66956.0,0.12416891]
[1722346576550,0.149351,66957.0,66956.0,0.12416891]
[1722346576945,0.149349,66957.0,66956.0,0.12416891]
[1722346577102,0.149349,66957.0,66956.0,0.13802451]
[1722346577305,0.48083,66961.0,66957.0,0.149348]
[1722346577581,0.48083,66961.0,66959.0,0.149344]
[1722346577794,0.48083,66961.0,66960.0,0.12416891]
[1722346578013,0.48083,66961.0,66960.0,0.28735634]
[1722346578181,0.00083,66961.0,66960.0,0.13801434]
[1722346578593,0.15017,66961.0,66960.0,0.01384543]
[1722346578998,0.00083,66961.0,66958.0,0.149346]
[1722346579198,0.150172,66961.0,66959.0,0.12416447]
[1722346579408,0.00083,66961.0,66959.0,0.01384797]
[1722346579614,0.00083,66961.0,66960.0,0.149342]
[1722346579615,0.00163744,66961.0,66960.0,0.149342]
[1722346579816,0.00083,66961.0,66960.0,0.47287243]
[1722346579991,0.00083,66961.0,66960.0,0.17418743]
[1722346580200,0.00083,66961.0,66960.0,0.01384543]
[1722346580402,0.00083,66961.0,66958.0,0.149346]
[1722346580604,0.00083,66961.0,66959.0,0.14901367]
[1722346580790,0.00083,66961.0,66960.0,0.27350647]
[1722346580991,0.00083,66961.0,66960.0,0.28735313]
[1722346581191,0.00083,66961.0,66960.0,0.13801113]
[1722346581417,0.00083,66961.0,66960.0,0.28735313]
[1722346581613,0.00083,66961.0,66960.0,0.58603813]
[1722346581854,0.2815954,66966.0,66960.0,0.13800332]
[1722346582052,0.149336,66964.0,66961.0,0.12415613]
[1722346582191,0.149334,66964.0,66962.0,0.01384158]
[1722346582398,0.00089747,66963.0,66962.0,0.448014]
[1722346582646,0.0809,66977.0,66968.0,0.298647]
[1722346582796,0.298615,66976.0,66969.0,0.01382378]
[1722346583005,0.298615,66976.0,66962.0,0.078]
[1722346583006,0.0809,66977.0,66962.0,0.078]
[1722346583204,0.0809,66977.0,66972.0,0.447948]
[1722346583443,0.0809,66977.0,66972.0,0.50654398]
[1722346583600,0.7836,66980.0,66972.0,0.80517598]
[1722346583822,0.0768,66984.0,66983.0,0.447874]
[1722346584041,0.0632,66987.0,66983.0,0.0137606]
[1722346584239,0.0632,66995.0,66975.0,0.0812]
[1722346584518,0.0632,66995.0,66977.0,0.03005]
[1722346584705,0.0632,66995.0,66979.0,0.03005]
[1722346584904,0.14928,66988.0,66982.0,0.149292]
[1722346585208,0.298534,66994.0,66981.0,0.298589]
[1722346585414,0.298534,66994.0,66976.0,0.0453442]
[1722346585415,0.0632,66995.0,66986.0,0.298567]
[1722346585542,0.0632,66995.0,66987.0,0.30154931]
[1722346585741,0.1,66995.0,66987.0,0.01672398]
[1722346585947,0.1,66995.0,66989.0,0.298556]
[1722346586147,0.1,66995.0,66987.0,0.00298531]
[1722346586393,0.02,66999.0,66990.0,0.01671152]
[1722346586544,0.02,66999.0,66991.0,0.03005]
[1722346586769,0.02,66999.0,66992.0,0.00298502]
[1722346586960,0.02,66999.0,66991.0,0.04282446]
[1722346587161,0.02,66999.0,66993.0,0.01279356]
[1722346587491,0.02,66999.0,66994.0,0.01307276]
[1722346587844,0.02,66999.0,66987.0,0.009]
[1722346588048,0.298516,66998.0,66988.0,0.16833674]
[1722346588253,0.02,66999.0,66988.0,0.16833674]
[1722346588254,0.02,66999.0,66988.0,0.0134904]
[1722346588656,0.02,66999.0,66988.0,0.14928]
[1722346588856,0.318513,66999.0,66989.0,0.01348786]
[1722346589057,0.02,66999.0,66990.0,0.00298522]
[1722346589320,0.02,66999.0,66991.0,0.03005]
[1722346589503,0.149261,66997.0,66991.0,0.03005]
[1722346589706,0.02,66999.0,66998.0,0.149258]
[1722346590249,0.02,66999.0,66998.0,0.01346501]
[1722346590732,0.02,66999.0,66998.0,0.46123901]
[1722346590929,0.02,66999.0,66998.0,0.74629]
[1722346591145,0.02,66999.0,66998.0,0.75968625]
[1722346591348,0.02,66999.0,66998.0,1.78999392]
[1722346591580,0.02,66999.0,66998.0,2.2426229]
[1722346592324,0.02,66999.0,66998.0,2.2566229]
[1722346592527,0.00018023,67003.0,67002.0,1.403291]
[1722346592750,0.00826371,67010.0,67009.0,0.4577]
[1722346592955,0.44444115,67027.0,67026.0,0.776027]
[1722346593171,0.00841,67028.0,67027.0,0.149193]
[1722346593373,0.00841,67028.0,67027.0,0.44758]
[1722346593617,0.00841,67028.0,67027.0,0.01349841]
[1722346593823,0.00841,67028.0,67024.0,0.298397]
[1722346594026,0.00841,67028.0,67027.0,0.44758]
[1722346594252,0.00841,67028.0,67027.0,0.46107841]
[1722346594400,0.00841,67028.0,67027.0,0.75946541]
[1722346594801,0.00841,67028.0,67027.0,1.08790241]
[1722346595004,0.00841,67028.0,67027.0,1.53692245]
[1722346595328,0.00841,67028.0,67027.0,1.87266836]
[1722346595503,0.00841,67028.0,67027.0,1.88266836]
[1722346595705,0.00841,67028.0,67027.0,1.58428136]
[1722346596314,0.00841,67028.0,67027.0,1.70628136]
[1722346596571,0.00841,67028.0,67027.0,2.05562015]
[1722346596770,0.00841,67028.0,67027.0,2.35400715]
[1722346597041,0.0152664,67032.0,67031.0,1.40471]
[1722346597187,9e-05,67034.0,67033.0,0.73929]
[1722346597390,0.00018019,67043.0,67033.0,0.73929]
[1722346597391,0.00018019,67043.0,67042.0,0.44748]
[1722346597585,0.00018019,67043.0,67042.0,1.44355304]
[1722346597827,0.00018019,67043.0,67042.0,1.45696311]
[1722346598026,0.00018019,67043.0,67042.0,1.63261311]
[1722346598228,0.00018019,67043.0,67042.0,2.18162743]
[1722346598508,0.00018019,67043.0,67042.0,2.58895821]
[1722346598717,0.00018019,67043.0,67042.0,2.58695821]
[1722346598940,0.44444115,67064.0,67055.0,1.083967]
[1722346599145,0.44444115,67064.0,67055.0,1.87166204]
[1722346599438,0.00841,67066.0,67055.0,2.15790896]
[1722346599668,0.00841,67066.0,67065.0,0.785595]
[1722346599839,0.00831,67066.0,67065.0,1.34763875]
[1722346600041,0.00831,67066.0,67065.0,1.39229756]
[1722346600457,0.00831,67066.0,67065.0,1.42743684]
[1722346600669,0.00831,67066.0,67065.0,0.93942075]
[1722346600871,0.00831,67066.0,67065.0,0.04324271]
[1722346601073,0.455629,67066.0,67065.0,0.02672047]
[1722346601228,0.455629,67066.0,67056.0,0.13005]
[1722346601229,0.00831,67066.0,67056.0,0.13005]
[1722346601413,0.149114,67063.0,67057.0,0.01298164]
[1722346601619,0.00831,67066.0,67057.0,0.01298164]
[1722346601620,0.149123,67059.0,67057.0,0.01298164]
[1722346601829,0.149124,67058.0,67057.0,0.01298164]
[1722346602032,0.298236,67061.0,67039.0,0.24768533]
[1722346602033,0.00831,67066.0,67040.0,0.0624]
[1722346602366,0.0771,67058.0,67042.0,0.03005]
[1722346602567,0.00831,67066.0,67051.0,0.03005]
[1722346602770,0.44444115,67064.0,67051.0,0.03005]
[1722346602972,0.0629,67054.0,67038.0,0.2388]
[1722346603145,0.0629,67054.0,67034.0,0.0651]
[1722346603146,0.149135,67053.0,67052.0,0.01303894]
[1722346603345,0.82102416,67053.0,67052.0,0.01303894]
[1722346603549,0.149162,67041.0,67040.0,0.002]
[1722346603851,0.0629,67054.0,67032.0,0.0766]
[1722346603852,0.298296,67048.0,67032.0,0.0766]
[1722346604123,0.149137,67052.0,67051.0,0.005]
[1722346604297,0.149137,67052.0,67035.0,0.07534716]
[1722346604298,0.1444,67065.0,67045.0,0.03005]
[1722346604499,0.1444,67065.0,67042.0,0.07534716]
[1722346604500,0.1444,67065.0,67053.0,0.07534716]
[1722346604702,0.149109,67065.0,67055.0,0.2388]
[1722346604903,0.00831,67066.0,67055.0,0.2388]
[1722346605106,0.00831,67066.0,67056.0,0.16363644]
[1722346605311,0.00831,67066.0,67056.0,0.0130034]
[1722346605731,0.298227,67063.0,67057.0,0.04179274]
[1722346605932,0.00831,67066.0,67057.0,0.01300023]
[1722346606133,0.00831,67066.0,67065.0,0.149109]
[1722346606373,0.00831,67066.0,67065.0,0.477377]
[1722346606598,0.00831,67066.0,67065.0,0.78856988]
[1722346606769,0.00831,67066.0,67065.0,0.19213388]
[1722346606970,0.00831,67066.0,67065.0,0.01297488]
[1722346606971,0.455629,67066.0,67065.0,0.01297488]
[1722346607113,0.753842,67066.0,67065.0,0.01297488]
[1722346607317,0.0816,67062.0,67047.0,0.03005]
[1722346607572,0.149141,67051.0,67046.0,0.14915]
[1722346607768,0.0816,67062.0,67048.0,0.01300531]
[1722346608005,0.0816,67062.0,67039.0,0.2388]
[1722346608006,0.745732,67048.0,67047.0,0.01300848]
[1722346608210,0.745732,67048.0,67035.0,0.05978]
[1722346608211,0.149158,67043.0,67038.0,0.149167]
[1722346608343,0.149143,67050.0,67032.0,0.066]
[1722346608716,0.0664,67039.0,67018.0,0.0601]
[1722346608889,0.447534,67034.0,67033.0,0.01527154]
[1722346609192,0.447534,67034.0,67019.0,0.15063304]
[1722346609193,0.298361,67033.0,67025.0,0.149197]
[1722346609393,0.0664,67039.0,67014.0,0.059798]
[1722346609609,0.0664,67039.0,67026.0,0.01532621]
[1722346609610,0.29837,67031.0,67026.0,0.01532621]
[1722346609754,0.29837,67031.0,67015.0,0.15063304]
[1722346609755,0.0664,67039.0,67015.0,0.15063304]
[1722346610160,0.0664,67039.0,67016.0,0.01539979]
[1722346610357,0.447586,67026.0,67025.0,0.007]
[1722346610569,0.149193,67027.0,67025.0,0.007]
[1722346610800,0.298385,67028.0,67018.0,0.298424]
[1722346610801,0.298384,67028.0,67018.0,0.298424]
[1722346611009,0.149194,67027.0,67018.0,0.328475]
[1722346611211,0.0664,67039.0,67019.0,0.0454371]
[1722346611212,0.298349,67036.0,67019.0,0.0454371]
[1722346611373,0.149209,67020.0,67019.0,0.0454371]
[1722346611568,0.149197,67026.0,67019.0,0.0454371]
[1722346611775,0.48,67032.0,67019.0,0.0454371]
[1722346611776,0.149209,67020.0,67019.0,0.0454371]
[1722346611996,0.149209,67020.0,67019.0,0.03005]
[1722346611997,0.447627,67020.0,67019.0,0.03005]
[1722346612195,0.48,67032.0,67014.0,0.298441]
[1722346612396,0.298388,67027.0,67018.0,0.298425]
[1722346612601,0.298388,67027.0,67019.0,0.16462428]
[1722346612602,0.149201,67024.0,67019.0,0.16462428]